bitfinex-derivatives/quotes_SOLF0:USTF0_20250509
["timestamp","ask_amount","ask_price","bid_price","bid_amount"]
[1746759221033,31.92,162.7,162.66,1.0]
[1746759221333,38.0674,162.7,162.66,7.1486]
[1746759222227,6.1476,162.69,162.66,7.1486]
[1746759222627,31.92,162.7,162.66,7.1486]
[1746759223432,38.0673,162.7,162.66,7.1486]
[1746759224432,31.92,162.7,162.67,6.1483]
[1746759225429,38.0672,162.7,162.66,7.1486]
[1746759225934,6.1476,162.69,162.66,1.0]
[1746759229936,38.0673,162.7,162.66,7.1486]
[1746759232234,31.92,162.7,162.66,1.0]
[1746759234037,6.1483,162.67,162.66,1.0]
[1746759238736,6.1476,162.69,162.66,1.0]
[1746759239750,6.1479,162.68,162.66,1.0]
[1746759241246,6.1476,162.69,162.66,1.0]
[1746759241447,31.92,162.7,162.66,1.0]
[1746759241945,31.92,162.7,162.67,6.1481]
[1746759242747,31.92,162.7,162.66,7.1486]
[1746759245549,38.0672,162.7,162.66,7.1486]
[1746759248851,38.0672,162.7,162.67,6.1483]
[1746759249060,31.92,162.7,162.66,1.0]
[1746759249451,31.92,162.7,162.67,6.148]
[1746759250244,31.92,162.7,162.66,7.1485]
[1746759250653,38.0672,162.7,162.66,7.1485]
[1746759250954,38.0672,162.7,162.67,6.1483]
[1746759251153,31.92,162.7,162.67,6.1483]
[1746759253756,31.92,162.7,162.68,6.1477]
[1746759255153,31.92,162.7,162.66,1.0]
[1746759255756,6.1479,162.69,162.66,1.0]
[1746759255957,31.92,162.7,162.66,1.0]
[1746759256257,31.92,162.7,162.66,7.1486]
[1746759257358,31.92,162.7,162.66,1.0]
[1746759258053,6.1477,162.69,162.66,1.0]
[1746759258254,31.92,162.7,162.66,1.0]
[1746759260062,6.148,162.68,162.66,1.0]
[1746759260262,31.92,162.7,162.66,1.0]
[1746759260460,6.1483,162.67,162.66,1.0]
[1746759262260,6.1495,162.64,162.62,1.0]
[1746759263368,40.3291,162.65,162.62,1.0]
[1746759264666,34.18,162.65,162.62,1.0]
[1746759265369,68.2,162.65,162.54,119.51014998]
[1746759265757,68.2,162.65,162.5,1.07043986]
[1746759265758,6.13710409,162.58,162.5,1.07043986]
[1746759265961,6.154,162.52,162.5,1.07043986]
[1746759266169,40.354,162.52,162.47,8.28268285]
[1746759266971,34.2,162.52,162.47,8.28268285]
[1746759267670,34.2,162.52,162.51,0.3004]
[1746759267865,34.2,162.52,162.47,1.0]
[1746759270568,34.2,162.52,162.47,7.13764774]
[1746759270768,34.2,162.52,162.51,6.154]
[1746759270971,35.43061777,162.52,162.51,6.154]
[1746759271470,565.48,162.57,162.56,6.1524]
[1746759271669,566.71023928,162.57,162.49,2.0194]
[1746759271968,35.43023928,162.57,162.5,6.13764774]
[1746759272973,35.43023928,162.57,162.56,6.1524]
[1746759275171,1.23023928,162.57,162.56,6.1524]
[1746759281078,1.23023928,162.57,162.56,7.1524]
[1746759299683,39.1286,162.67,162.56,7.1310885]
[1746759299883,32.98,162.67,162.6,6.1310885]
[1746759302491,32.98,162.67,162.62,6.1498]
[1746759302694,32.98,162.67,162.62,33.24]
[1746759302889,32.98,162.71,162.63,6.1310885]
[1746759303090,32.98,162.71,162.63,8.1223885]
[1746759303295,32.98,162.71,162.64,1.9626]
[1746759303592,39.127,162.71,162.64,1.9626]
[1746759303893,32.98,162.71,162.64,1.9626]
[1746759304195,32.98,162.75,162.66,6.1310885]
[1746759304394,32.98,162.75,162.67,33.86]
[1746759304690,32.98,162.75,162.69,6.1310885]
[1746759304996,32.98,162.75,162.71,6.1467]
[1746759305298,32.98,162.75,162.68,6.1310885]
[1746759305792,6.1443,162.78,162.68,6.1310885]
[1746759305995,32.96,162.79,162.71,6.1310885]
[1746759306194,32.96,162.79,162.65,34.9993]
[1746759306195,32.96,162.79,162.72,33.82]
[1746759306790,6.1441,162.78,162.72,39.9663]
[1746759306999,32.96,162.79,162.72,33.82]
[1746759307293,11.96514559,162.78,162.72,33.82]
[1746759308092,6.1447,162.77,162.72,33.82]
[1746759310195,6.145,162.76,162.72,33.82]
[1746759313196,6.1453,162.75,162.72,33.82]
[1746759313396,11.96514559,162.78,162.69,12.2782885]
[1746759313595,11.96514559,162.78,162.69,33.44]
[1746759313795,6.1467,162.72,162.67,33.44]
[1746759313992,32.94,162.74,162.65,34.9993]
[1746759314296,32.94,162.74,162.66,33.42]
[1746759314495,38.7363,162.74,162.66,33.42]
[1746759314696,38.7363,162.74,162.65,33.4]
[1746759315196,6.1474,162.7,162.65,33.4]
[1746759315491,6.1474,162.7,162.65,39.549]
[1746759315900,38.7363,162.74,162.65,39.549]
[1746759315901,6.148,162.68,162.65,33.4]
[1746759316394,6.1479,162.69,162.65,33.4]
[1746759316594,38.7363,162.74,162.65,33.4]
[1746759317701,38.7363,162.74,162.61,32.94]
[1746759317702,6.1310885,162.72,162.61,32.94]
[1746759317898,6.1310885,162.72,162.62,33.22]
[1746759318297,6.1488,162.66,162.62,33.22]
[1746759318505,6.1488,162.66,162.61,66.12]
[1746759318899,6.1484,162.67,162.62,6.1502]
[1746759319094,32.94,162.68,162.61,66.12]
[1746759319308,32.94,162.68,162.62,33.12]
[1746759319601,32.94,162.68,162.64,6.1492]
[1746759319794,32.94,162.68,162.62,39.2510885]
[1746759319995,11.96976278,162.69,162.65,6.1310885]
[1746759320197,11.96976278,162.69,162.68,6.1479]
[1746759320401,32.96,162.74,162.67,33.12]
[1746759320602,32.96,162.74,162.68,6.1310885]
[1746759320902,32.96,162.74,162.7,6.1469]
[1746759321097,32.96,162.74,162.68,8.1381885]
[1746759321297,32.96,162.74,162.71,6.1467]
[1746759321602,11.96514559,162.75,162.71,6.1467]
[1746759321800,11.96514559,162.75,162.68,8.1381885]
[1746759322201,18.11044559,162.75,162.68,8.1381885]
[1746759322694,6.1457,162.74,162.7,6.1471]
[1746759322900,11.96514559,162.75,162.7,6.1471]
[1746759323196,18.11074559,162.75,162.7,6.1471]
[1746759324202,18.11074559,162.75,162.71,6.1467]
[1746759324599,18.11074559,162.75,162.68,2.0071]
[1746759325001,18.11074559,162.75,162.7,6.1468]
[1746759325903,11.96514559,162.75,162.71,6.1466]
[1746759326902,18.11044559,162.75,162.7,6.1471]
[1746759327103,18.11044559,162.75,162.68,2.0071]
[1746759327300,11.96514559,162.75,162.68,2.0071]
[1746759327499,11.96514559,162.75,162.71,6.1464]
[1746759328206,18.11054559,162.75,162.71,6.1464]
[1746759330107,18.11054559,162.75,162.7,6.147]
[1746759330301,18.11054559,162.75,162.68,2.0071]
[1746759330604,18.11054559,162.75,162.7,6.1468]
[1746759330803,18.11054559,162.75,162.68,2.0071]
[1746759332003,18.11054559,162.75,162.71,6.1468]
[1746759332704,6.1459,162.74,162.7,6.1469]
[1746759333908,6.1461,162.73,162.7,32.7]
[1746759334809,34.18865216,162.78,162.67,6.1479]
[1746759335009,34.18865216,162.78,162.67,38.7879]
[1746759335310,34.18865216,162.78,162.67,32.64]
[1746759336110,6.1468,162.72,162.68,6.1479]
[1746759337615,39.3261,162.73,162.69,6.1475]
[1746759338416,33.18,162.73,162.67,32.64]
[1746759339214,33.18,162.73,162.72,6.1464]
[1746759339515,33.18,162.77,162.67,32.64]
[1746759339715,39.3246,162.77,162.73,6.1459]
[1746759341419,6.1449,162.76,162.73,6.1459]
[1746759341619,6.1449,162.76,162.72,6.1463]
[1746759342920,39.3246,162.77,162.72,6.1463]
[1746759343719,39.3246,162.77,162.73,1.0]
[1746759343916,39.3246,162.77,162.73,7.146]
[1746759347821,6.1449,162.76,162.73,7.146]
[1746759348126,33.18,162.77,162.73,7.146]
[1746759349026,39.3246,162.77,162.73,7.146]
[1746759350329,39.3246,162.77,162.73,1.0]
[1746759351029,39.3246,162.77,162.73,7.146]
[1746759351631,39.3246,162.77,162.73,1.0]
[1746759353035,39.3246,162.77,162.73,7.146]
[1746759359932,6.1449,162.76,162.73,7.146]
[1746759360136,33.18,162.77,162.73,7.146]
[1746759360434,39.3246,162.77,162.73,7.146]
[1746759366642,6.1449,162.76,162.73,7.146]
[1746759367341,39.3246,162.77,162.73,7.146]
[1746759370445,39.3246,162.77,162.74,6.1455]
[1746759370649,39.3246,162.77,162.73,1.0]
[1746759371046,39.3246,162.77,162.73,7.1459]
[1746759371647,39.3246,162.77,162.73,1.0]
[1746759371847,33.18,162.77,162.73,1.0]
[1746759372237,6.1456,162.74,162.73,1.0]
[1746759372444,33.2803,162.76,162.67,31.34]
[1746759372843,33.2803,162.76,162.68,6.1477]
[1746759373041,33.2803,162.76,162.67,31.34]
[1746759373245,33.2803,162.76,162.67,37.45936101]
[1746759373542,31.34,162.76,162.67,37.45936101]
[1746759374148,37.4852,162.76,162.7,6.147]
[1746759374951,37.4852,162.76,162.67,37.45936101]
[1746759375548,37.4852,162.76,162.7,6.1469]
[1746759377251,6.1453,162.75,162.7,6.1469]
[1746759377646,31.34,162.76,162.66,4.0427]
[1746759377842,6.1467,162.72,162.66,35.2227]
[1746759378049,32.1,162.72,162.64,33.9867]
[1746759378250,32.1,162.72,162.65,31.18]
[1746759378655,6.1476,162.69,162.64,8.0558]
[1746759378857,6.1476,162.69,162.64,6.1491]
[1746759379055,63.3,162.72,162.64,6.1491]
[1746759379352,6.148,162.68,162.63,37.3297]
[1746759379554,63.3,162.72,162.61,35.2783]
[1746759379853,6.1486,162.67,162.62,6.1501]
[1746759380356,63.3,162.72,162.62,6.1501]
[1746759380855,1.22918075,162.71,162.62,6.1501]
[1746759381056,6.1484,162.67,162.62,6.1501]
[1746759381254,32.1,162.67,162.61,6.1505]
[1746759381659,6.1489,162.66,162.61,6.1505]
[1746759382659,6.1492,162.65,162.6,51.86326174]
[1746759382863,32.1,162.67,162.58,33.0901]
[1746759383159,6.1497,162.64,162.59,6.1512]
[1746759383561,32.1,162.67,162.59,6.1512]
[1746759383762,6.1497,162.64,162.6,6.1509]
[1746759384355,38.21936101,162.67,162.56,33.1]
[1746759384559,38.21936101,162.67,162.56,32.2]
[1746759384755,38.21936101,162.67,162.56,1.0]
[1746759384956,1.22955858,162.66,162.56,1.0]
[1746759385161,6.151,162.6,162.56,1.0]
[1746759385458,31.16,162.6,162.56,1.0]
[1746759385657,31.16,162.6,162.56,7.1524]
[1746759385960,31.16,162.6,162.56,1.0]
[1746759386452,37.311,162.6,162.56,1.0]
[1746759386854,31.16,162.6,162.56,1.0]
[1746759387058,31.16,162.6,162.56,7.1522]
[1746759389162,31.16,162.6,162.56,1.0]
[1746759389762,31.16,162.6,162.56,7.1523]
[1746759390861,37.311,162.6,162.56,7.1523]
[1746759391062,31.16,162.6,162.56,1.0]
[1746759391451,6.152,162.58,162.56,1.0]
[1746759392857,6.1514,162.59,162.56,1.0]
[1746759393565,6.1517,162.58,162.56,1.0]
[1746759393959,6.1514,162.59,162.56,1.0]
[1746759395165,6.152,162.58,162.56,1.0]
[1746759395467,31.16,162.6,162.56,1.0]
[1746759395962,6.1521,162.57,162.56,1.0]
[1746759397156,6.153,162.55,162.48,37.29936101]
[1746759397358,31.18,162.55,162.48,62.16]
[1746759397559,31.18,162.55,162.47,31.98]
[1746759397960,31.18,162.55,162.49,6.1548]
[1746759398763,6.1536,162.53,162.49,6.1548]
[1746759401565,6.154,162.52,162.48,6.1552]
[1746759401768,31.18,162.55,162.47,1.0]
[1746759402068,6.1535,162.54,162.5,6.1545]
[1746759402363,31.18,162.55,162.47,1.0]
[1746759403268,31.18,162.55,162.48,6.1552]
[1746759403667,62.34,162.55,162.48,6.1552]
[1746759404265,62.34,162.55,162.47,1.0]
[1746759405361,62.34,162.55,162.47,7.1558]
[1746759406069,6.1543,162.52,162.47,7.1558]
[1746759406369,31.2,162.51,162.47,8.1558]
[1746759407271,37.3544,162.51,162.47,8.1558]
[1746759408771,31.2,162.51,162.47,8.1558]
[1746759409071,31.2,162.51,162.48,6.1554]
[1746759409471,31.2,162.51,162.47,2.0]
[1746759409772,31.2,162.51,162.47,8.11936101]
[1746759410068,31.2,162.51,162.5,6.1547]
[1746759410270,37.3529,162.55,162.48,30.98]
[1746759410770,31.2,162.55,162.52,6.1539]
[1746759412173,37.3529,162.55,162.52,6.1539]
[1746759412473,31.2,162.55,162.51,6.1543]
[1746759413070,37.353,162.55,162.51,6.1543]
[1746759413269,37.353,162.55,162.52,6.154]
[1746759413481,31.2,162.55,162.52,6.154]
[1746759414771,31.2,162.55,162.51,6.1542]
[1746759414969,31.2,162.55,162.48,30.98]
[1746759416273,31.2,162.55,162.52,6.1539]
[1746759416474,37.3529,162.55,162.52,6.1539]
[1746759416674,37.3529,162.55,162.48,30.98]
[1746759417068,37.3529,162.55,162.47,8.11936101]
[1746759417069,6.1534,162.54,162.5,6.1547]
[1746759417276,31.2,162.55,162.48,30.8]
[1746759417669,31.2,162.55,162.5,6.1547]
[1746759418070,31.2,162.55,162.48,30.8]
[1746759418469,31.2,162.55,162.47,2.0]
[1746759418678,6.1537,162.53,162.49,6.1548]
[1746759419178,6.1533,162.54,162.5,6.1547]
[1746759420576,31.2,162.55,162.47,38.83936101]
[1746759421178,31.2,162.55,162.52,6.1539]
[1746759421983,31.2,162.55,162.47,38.83936101]
[1746759423880,6.1533,162.54,162.5,6.1544]
[1746759424279,31.2,162.55,162.47,38.83936101]
[1746759425881,6.1533,162.54,162.47,38.83936101]
[1746759426383,6.1533,162.54,162.5,6.1544]
[1746759428284,6.1533,162.54,162.51,6.1542]
[1746759428480,31.2,162.55,162.47,2.0]
[1746759428984,6.1542,162.52,162.48,6.1551]
[1746759429583,31.2,162.55,162.47,2.0]
[1746759429788,31.2,162.55,162.47,8.11936101]
[1746759430581,31.2,162.55,162.53,6.1533]
[1746759431789,31.2,162.55,162.54,6.1532]
[1746759434185,31.2,162.55,162.52,6.1536]
[1746759434483,37.3528,162.55,162.52,6.1536]
[1746759434686,37.3528,162.55,162.51,6.1542]
[1746759434992,31.2,162.55,162.51,6.1542]
[1746759435190,31.2,162.55,162.49,30.68]
[1746759435991,31.2,162.55,162.53,6.1536]
[1746759439394,31.2,162.55,162.52,6.1539]
[1746759439589,31.2,162.55,162.49,30.68]
[1746759440092,31.2,162.55,162.52,6.1536]
[1746759440296,31.2,162.55,162.49,30.68]
[1746759440494,31.2,162.55,162.5,6.11936101]
[1746759440686,31.2,162.55,162.5,8.03526101]
[1746759440993,31.2,162.55,162.54,6.1532]
[1746759441195,30.86,162.59,162.51,1.9085]
[1746759441390,30.86,162.59,162.52,2.0469]
[1746759441591,30.86,162.59,162.53,36.77936101]
[1746759442194,30.86,162.59,162.58,6.1517]
[1746759443096,30.86,162.59,162.53,30.66]
[1746759444489,30.86,162.59,162.56,6.1524]
[1746759444693,30.86,162.59,162.53,30.66]
[1746759444997,30.86,162.59,162.55,6.1528]
[1746759446293,37.0114,162.59,162.53,36.8132]
[1746759446596,30.86,162.59,162.53,30.66]
[1746759447098,6.1518,162.58,162.53,36.8133]
[1746759447301,6.1518,162.58,162.53,6.1533]
[1746759448797,6.1521,162.57,162.53,6.1533]
[1746759448998,30.86,162.59,162.53,6.1533]
[1746759450202,6.1518,162.58,162.53,6.1533]
[1746759451097,6.1521,162.57,162.53,6.1533]
[1746759452502,6.1518,162.58,162.53,6.1533]
[1746759453101,31.94,162.57,162.53,6.1533]
[1746759453303,38.0922,162.57,162.53,6.1533]
[1746759453802,38.0922,162.57,162.52,6.1539]
[1746759454298,6.1526,162.56,162.52,6.1539]
[1746759454507,31.94,162.57,162.51,6.1542]
[1746759454698,31.94,162.57,162.48,39.74876101]
[1746759454899,31.94,162.57,162.48,1.9894]
[1746759455099,33.9141,162.57,162.47,2.0]
[1746759455300,35.9564,162.57,162.47,2.0]
[1746759455599,35.9564,162.57,162.5,6.1547]
[1746759456004,6.1532,162.55,162.5,6.1547]
[1746759456204,6.1532,162.55,162.51,6.1543]
[1746759460307,6.1532,162.54,162.51,6.1543]
[1746759460606,6.1532,162.54,162.5,6.1547]
[1746759461402,6.153,162.55,162.47,33.66]
[1746759461606,6.153,162.55,162.51,6.1543]
[1746759462708,33.9141,162.57,162.47,2.0]
[1746759462905,6.11936101,162.56,162.47,2.0]
[1746759463305,6.1546,162.51,162.47,2.0]
[1746759463606,38.1146,162.51,162.47,2.0]
[1746759465512,38.1146,162.51,162.47,8.1557]
[1746759467809,38.1146,162.51,162.47,2.0]
[1746759467810,31.96,162.51,162.47,2.0]
[1746759468907,31.96,162.51,162.47,3.0]
[1746759470913,31.96,162.51,162.48,6.1551]
[1746759471711,38.1144,162.51,162.48,6.1551]
[1746759472614,38.1144,162.51,162.47,3.0]
[1746759473316,38.1144,162.51,162.48,6.1554]
[1746759473617,31.96,162.51,162.48,6.1554]
[1746759474216,38.1144,162.51,162.48,6.1554]
[1746759475016,6.1548,162.5,162.47,3.0]
[1746759475316,31.96,162.51,162.47,3.0]
[1746759475512,31.96,162.51,162.47,9.1556]
[1746759475710,38.1144,162.51,162.47,9.1556]
[1746759476218,38.1144,162.51,162.48,6.1555]
[1746759476419,31.96,162.51,162.48,6.1555]
[1746759477216,31.96,162.51,162.47,3.0]
[1746759477217,31.96,162.51,162.49,6.155]
[1746759478018,30.9,162.54,162.49,6.11936101]
[1746759479013,30.9,162.54,162.53,6.1536]
[1746759480423,6.1514,162.59,162.55,6.1526]
[1746759480615,30.9,162.58,162.55,6.1526]
[1746759481113,37.0517,162.58,162.54,6.1531]
[1746759484423,37.0517,162.58,162.53,6.1535]
[1746759484723,30.9,162.58,162.48,1.9431]
[1746759485125,6.1538,162.53,162.48,1.9431]
[1746759485325,37.0538,162.53,162.48,1.9431]
[1746759485521,30.9,162.53,162.48,8.0983]
[1746759486325,6.154,162.52,162.48,8.0983]
[1746759487127,6.154,162.52,162.48,6.1552]
[1746759487320,356.77796,162.61,162.49,6.11936101]
[1746759487524,356.77796,162.61,162.52,6.11936101]
[1746759487725,362.92886,162.61,162.53,6.1532]
[1746759487922,362.92886,162.61,162.52,40.59936101]
[1746759488227,356.77796,162.61,162.52,40.59936101]
[1746759488427,356.77796,162.61,162.53,2.0314]
[1746759488728,356.77796,162.61,162.55,6.1525]
[1746759488929,6.1502,162.62,162.53,2.0314]
[1746759489527,6.1506,162.61,162.54,6.1528]
[1746759489822,6.1506,162.61,162.53,2.0314]
[1746759490923,33.06,162.63,162.53,2.0314]
[1746759491123,33.06,162.63,162.52,34.48]
[1746759491627,6.151,162.6,162.52,34.48]
[1746759492134,33.06,162.63,162.52,34.48]
[1746759492431,6.11936101,162.62,162.52,34.48]
[1746759492620,6.11936101,162.59,162.49,3.9201]
[1746759492926,38.4894,162.58,162.48,35.22]
[1746759493927,6.1528,162.56,162.49,6.1551]
[1746759494129,38.4894,162.58,162.49,6.1551]
[1746759494428,6.1532,162.55,162.48,41.3755]
[1746759494617,40.4721,162.58,162.48,41.3755]
[1746759494817,40.4721,162.58,162.48,35.22]
[1746759495023,6.1535,162.54,162.48,35.22]
[1746759495221,40.4721,162.58,162.48,35.22]
[1746759495628,6.1535,162.54,162.48,41.3755]
[1746759496029,40.4721,162.58,162.48,41.3755]
[1746759496230,6.11936101,162.56,162.47,9.1558]
[1746759496432,41.21936101,162.56,162.47,9.1558]
[1746759496730,41.21936101,162.56,162.47,3.0]
[1746759496932,6.1536,162.54,162.48,6.1553]
[1746759497229,34.46,162.53,162.47,3.0]
[1746759497425,34.46,162.53,162.49,6.1551]
[1746759497730,34.46,162.53,162.47,3.0]
[1746759499832,6.154,162.52,162.47,3.0]
[1746759500232,6.154,162.52,162.47,9.1557]
[1746759500532,6.1544,162.51,162.47,3.0]
[1746759502135,6.1541,162.52,162.47,3.0]
[1746759502430,6.1541,162.52,162.47,9.1556]
[1746759503029,34.46,162.53,162.47,3.0]
[1746759503235,6.11936101,162.5,162.4,1.9036]
[1746759503433,34.78,162.49,162.4,1.9036]
[1746759503631,6.1568,162.45,162.39,91.728419]
[1746759503832,34.48,162.48,162.39,91.728419]
[1746759504740,34.48,162.48,162.4,6.1585]
[1746759505137,6.1566,162.46,162.4,6.1585]
[1746759505330,34.48,162.48,162.4,6.1585]
[1746759505735,34.48,162.48,162.39,85.569619]
[1746759506126,34.48,162.48,162.36,5.7732]
[1746759506536,6.1563,162.46,162.39,6.1586]
[1746759506929,34.48,162.48,162.36,5.7732]
[1746759507135,40.6356,162.48,162.36,5.7732]
[1746759508441,6.1551,162.5,162.36,5.7732]
[1746759508736,68.9,162.49,162.36,5.7732]
[1746759508939,68.9,162.49,162.45,6.1565]
[1746759509634,6.1551,162.5,162.45,6.1565]
[1746759509836,34.48,162.49,162.46,6.1562]
[1746759510336,6.1551,162.5,162.46,6.1562]
[1746759510541,34.48,162.49,162.46,6.1562]
[1746759510742,34.48,162.49,162.47,6.1558]
[1746759515351,34.48,162.49,162.46,6.1562]
[1746759515652,34.48,162.49,162.38,34.48]
[1746759515846,34.48,162.49,162.37,34.16]
[1746759516040,6.1559,162.47,162.42,6.1577]
[1746759516245,34.48,162.49,162.42,6.1577]
[1746759516445,6.1556,162.48,162.43,6.1573]
[1746759517341,6.1559,162.47,162.43,6.1573]
[1746759517547,6.1559,162.47,162.42,6.1576]
[1746759517852,6.1562,162.46,162.42,6.1576]
[1746759518351,6.156,162.47,162.42,6.1576]
[1746759518749,34.48,162.49,162.36,5.7732]
[1746759518750,34.48,162.49,162.36,1.9036]
[1746759519057,45.08246635,162.48,162.36,1.9036]
[1746759519250,1.23099649,162.47,162.36,1.9036]
[1746759519450,1.23099649,162.47,162.38,6.159]
[1746759519648,6.1573,162.44,162.38,6.159]
[1746759519849,34.08,162.43,162.36,1.9036]
[1746759520049,34.08,162.43,162.38,6.1592]
[1746759520344,34.08,162.43,162.34,33.96]
[1746759520547,34.08,162.43,162.36,6.1598]
[1746759520951,6.1584,162.41,162.36,6.1598]
[1746759521251,68.02,162.43,162.36,6.1598]
[1746759521546,68.02,162.43,162.37,6.1595]
[1746759521953,68.02,162.43,162.34,33.96]
[1746759522155,68.02,162.43,162.35,6.1603]
[1746759522550,68.02,162.43,162.33,33.96]
[1746759522745,6.1594,162.38,162.33,6.1609]
[1746759522947,34.08,162.38,162.32,1.8961]
[1746759523451,6.1599,162.37,162.32,8.0575]
[1746759524253,6.1601,162.36,162.32,8.0575]
[1746759525053,6.1601,162.36,162.32,1.8961]
[1746759525853,6.1605,162.35,162.32,1.8961]
[1746759526057,6.1605,162.35,162.27,34.14]
[1746759526246,6.1605,162.35,162.3,6.162]
[1746759526446,6.1605,162.35,162.27,34.14]
[1746759527762,6.1605,162.35,162.31,6.1616]
[1746759528956,6.1608,162.34,162.28,34.08]
[1746759529159,6.1608,162.34,162.26,3.9479]
[1746759529160,68.24,162.38,162.26,3.9479]
[1746759529558,2.0323,162.37,162.28,6.1628]
[1746759530057,2.0323,162.37,162.26,3.9479]
[1746759530561,6.1607,162.35,162.26,3.9479]
[1746759530958,40.2407,162.35,162.26,3.9479]
[1746759531161,40.2407,162.35,162.31,1.0]
[1746759532356,40.2407,162.35,162.31,7.1619]
[1746759532556,34.08,162.35,162.31,1.0]
[1746759533262,34.1,162.36,162.31,1.0]
[1746759533659,34.1,162.36,162.33,6.1612]
[1746759534964,6.1592,162.39,162.31,1.0]
[1746759535266,34.1,162.38,162.32,44.04825158]
[1746759535565,40.2593,162.38,162.34,6.1605]
[1746759535954,34.1,162.38,162.32,46.01405158]
[1746759536366,34.1,162.38,162.37,6.1596]
[1746759537858,34.1,162.42,162.37,6.1596]
[1746759538765,6.1582,162.41,162.38,6.1592]
[1746759538965,34.1,162.42,162.38,6.1592]
[1746759539963,40.2578,162.42,162.38,6.1592]
[1746759540161,34.1,162.42,162.39,6.1588]
[1746759540361,535.19719649,162.47,162.32,39.866]
[1746759540559,6.1571,162.44,162.32,39.866]
[1746759540758,6.1571,162.44,162.4,6.1582]
[1746759540961,40.2563,162.46,162.37,33.58]
[1746759541263,40.2563,162.46,162.38,4.0337]
[1746759541661,40.2563,162.46,162.39,1.9093]
[1746759542065,34.1,162.46,162.39,1.9093]
[1746759542366,34.1,162.46,162.42,6.1574]
[1746759542561,34.1,162.46,162.39,1.9093]
[1746759542769,34.1,162.46,162.39,45.82142544]
[1746759542960,1.23099649,162.47,162.39,45.82142544]
[1746759543158,34.08,162.5,162.39,45.82142544]
[1746759544468,40.2348,162.5,162.39,45.82142544]
[1746759544671,34.08,162.5,162.39,45.82142544]
[1746759545067,6.1556,162.48,162.39,45.82142544]
[1746759545268,6.1556,162.48,162.43,6.1571]
[1746759547666,34.08,162.5,162.43,6.1571]
[1746759548172,6.156,162.47,162.43,6.1571]
[1746759549471,6.1563,162.46,162.42,6.1577]
[1746759549666,34.08,162.5,162.41,33.3]
[1746759550070,6.1564,162.46,162.41,33.3]
[1746759550373,6.1564,162.46,162.39,45.82142544]
[1746759550571,6.1564,162.46,162.4,33.26]
[1746759550772,34.08,162.5,162.4,33.26]
[1746759551173,6.157,162.44,162.4,6.1585]
[1746759551374,6.157,162.44,162.4,39.3585]
[1746759552674,6.157,162.44,162.4,39.2785]
[1746759553375,6.1567,162.45,162.41,6.158]
[1746759554079,6.1564,162.46,162.42,6.1577]
[1746759554376,34.08,162.5,162.4,33.12]
[1746759554876,6.1552,162.49,162.4,33.12]
[1746759555076,6.1552,162.49,162.45,6.1563]
[1746759555278,40.2348,162.5,162.4,33.12]